[Event "Titled Tuesday Blitz February 07 Early 2023"]
[White "Osmak, Yuliia"]
[Black "Liyanage, Ranindu Dilshan"]
[WhiteFideId "14101602"]
[BlackFideId "9915834"]
[WhiteElo "2440"]
[BlackElo "2342"]
[Result "1-0"]
[Round "06"]
[TimeControl "180+2"]
[Date "2023.02.07"]
[WhiteClock "0:00:07"]
[BlackClock "0:00:07"]

1. Nf3 {[%clk 0:02:51]}  d5 {[%clk 0:02:59]} 2. g3 {[%clk 0:02:50]}  g6 {[%clk 0:02:59]} 3. Bg2 {[%clk 0:02:50]}  Bg7 {[%clk 0:03:00]} 4. O-O {[%clk 0:02:50]}  e5 {[%clk 0:03:00]} 5. d3 {[%clk 0:02:45]}  Ne7 {[%clk 0:03:00]} 6. e4 {[%clk 0:02:42]}  O-O {[%clk 0:02:56]} 7. Re1 {[%clk 0:02:36]}  Nbc6 {[%clk 0:02:54]} 8. Nc3 {[%clk 0:02:35]}  d4 {[%clk 0:02:33]} 9. Nd5 {[%clk 0:02:34]}  Be6 {[%clk 0:02:29]} 10. c4 {[%clk 0:02:21]}  dxc3 {[%clk 0:02:27]} 11. Nxe7+ {[%clk 0:02:18]}  Qxe7 {[%clk 0:02:27]} 12. bxc3 {[%clk 0:02:19]}  h6 {[%clk 0:02:25]} 13. d4 {[%clk 0:02:17]}  exd4 {[%clk 0:02:21]} 14. cxd4 {[%clk 0:02:18]}  Rfd8 {[%clk 0:02:21]} 15. Be3 {[%clk 0:01:28]}  Bg4 {[%clk 0:02:19]} 16. d5 {[%clk 0:01:27]}  Bxf3 {[%clk 0:01:42]} 17. Qxf3 {[%clk 0:01:10]}  Bxa1 {[%clk 0:01:40]} 18. dxc6 {[%clk 0:01:09]}  Bg7 {[%clk 0:01:37]} 19. cxb7 {[%clk 0:01:09]}  Rab8 {[%clk 0:01:37]} 20. e5 {[%clk 0:01:07]}  Qxe5 {[%clk 0:01:34]} 21. Rb1 {[%clk 0:01:03]}  Qa5 {[%clk 0:01:30]} 22. Qe2 {[%clk 0:00:53]}  Re8 {[%clk 0:01:07]} 23. Qc4 {[%clk 0:00:47]}  Re7 {[%clk 0:00:24]} 24. Bd5 {[%clk 0:00:38]}  h5 {[%clk 0:00:17]} 25. Bc5 {[%clk 0:00:26]}  Rd7 {[%clk 0:00:12]} 26. Bc6 {[%clk 0:00:19]}  Rd2 {[%clk 0:00:12]} 27. Bd5 {[%clk 0:00:15]}  Kh7 {[%clk 0:00:09]} 28. Bxf7 {[%clk 0:00:14]}  c6 {[%clk 0:00:04]} 29. Be3 {[%clk 0:00:08]}  Rd7 {[%clk 0:00:02]} 30. Bxg6+ {[%clk 0:00:05]}  Kxg6 {[%clk 0:00:02]} 31. Qe6+ {[%clk 0:00:05]}  Bf6 {[%clk 0:00:01]} 32. Qxd7 {[%clk 0:00:06]}  Qxa2 {[%clk 0:00:01]} 33. Qd3+ {[%clk 0:00:05]}  Kg7 {[%clk 0:00:01]} 34. Kg2 {[%clk 0:00:04]}  Qf7 {[%clk 0:00:02]} 35. h4 {[%clk 0:00:03]}  Rxb7 {[%clk 0:00:02]} 36. Rxb7 {[%clk 0:00:03]}  Qxb7 {[%clk 0:00:03]} 37. Qe4 {[%clk 0:00:03]}  Qc7 {[%clk 0:00:03]} 38. Kh2 {[%clk 0:00:03]}  c5 {[%clk 0:00:03]} 39. Qc4 {[%clk 0:00:03]}  Be7 {[%clk 0:00:02]} 40. Qd5 {[%clk 0:00:03]}  c4 {[%clk 0:00:02]} 41. Bd4+ {[%clk 0:00:03]}  Bf6 {[%clk 0:00:03]} 42. Qg5+ {[%clk 0:00:01]}  Kh7 {[%clk 0:00:03]} 43. Qxf6 {[%clk 0:00:02]}  c3 {[%clk 0:00:03]} 44. Qf5+ {[%clk 0:00:02]}  Kh6 {[%clk 0:00:03]} 45. Qg5+ {[%clk 0:00:02]}  Kh7 {[%clk 0:00:04]} 46. Qxh5+ {[%clk 0:00:03]}  Kg8 {[%clk 0:00:05]} 47. Qg6+ {[%clk 0:00:03]}  Kf8 {[%clk 0:00:05]} 48. Qf6+ {[%clk 0:00:04]}  Ke8 {[%clk 0:00:06]} 49. Qf5 {[%clk 0:00:04]}  c2 {[%clk 0:00:06]} 50. Qg6+ {[%clk 0:00:04]}  Kf8 {[%clk 0:00:06]} 51. Qf6+ {[%clk 0:00:05]}  Kg8 {[%clk 0:00:06]} 52. Qh8+ {[%clk 0:00:05]}  Kf7 {[%clk 0:00:06]} 53. Qg7+ {[%clk 0:00:06]}  Ke6 {[%clk 0:00:07]} 54. Qxc7 {[%clk 0:00:07]} 1-0


[Site "https://www.chess.com"]

[Event "Titled Tuesday Blitz February 07 Early 2023"]
[White "Berezin, Viktor"]
[Black "Pacan-Milej, Kosma"]
[WhiteFideId "14107872"]
[BlackFideId "21800537"]
[WhiteElo "2307"]
[BlackElo "2402"]
[Result "0-1"]
[Round "06"]
[TimeControl "180+2"]
[Date "2023.02.07"]
[WhiteClock "0:00:09"]
[BlackClock "0:00:10"]

1. d4 {[%clk 0:02:58]}  Nf6 {[%clk 0:03:00]} 2. Nf3 {[%clk 0:02:56]}  g6 {[%clk 0:03:00]} 3. g3 {[%clk 0:02:56]}  Bg7 {[%clk 0:03:00]} 4. Bg2 {[%clk 0:02:57]}  O-O {[%clk 0:03:01]} 5. O-O {[%clk 0:02:58]}  d6 {[%clk 0:03:02]} 6. a4 {[%clk 0:02:58]}  Nc6 {[%clk 0:03:00]} 7. Nc3 {[%clk 0:02:58]}  e5 {[%clk 0:03:00]} 8. dxe5 {[%clk 0:02:55]}  dxe5 {[%clk 0:03:01]} 9. Qxd8 {[%clk 0:02:54]}  Rxd8 {[%clk 0:03:02]} 10. a5 {[%clk 0:02:54]}  a6 {[%clk 0:02:59]} 11. Bg5 {[%clk 0:02:50]}  h6 {[%clk 0:02:59]} 12. Bxf6 {[%clk 0:02:50]}  Bxf6 {[%clk 0:02:59]} 13. Rfd1 {[%clk 0:02:47]}  Bf5 {[%clk 0:02:59]} 14. Ne1 {[%clk 0:02:42]}  Rxd1 {[%clk 0:02:51]} 15. Rxd1 {[%clk 0:02:43]}  Nxa5 {[%clk 0:02:49]} 16. Nd5 {[%clk 0:02:40]}  Bd8 {[%clk 0:02:49]} 17. Nd3 {[%clk 0:02:36]}  Nc6 {[%clk 0:02:45]} 18. Nc5 {[%clk 0:02:34]}  Rb8 {[%clk 0:02:40]} 19. e4 {[%clk 0:02:30]}  Bg4 {[%clk 0:02:40]} 20. f3 {[%clk 0:02:30]}  Bc8 {[%clk 0:02:36]} 21. f4 {[%clk 0:02:20]}  b6 {[%clk 0:02:34]} 22. Nd3 {[%clk 0:02:19]}  Bg4 {[%clk 0:02:33]} 23. Ra1 {[%clk 0:02:17]}  a5 {[%clk 0:02:30]} 24. Nxe5 {[%clk 0:02:12]}  Nxe5 {[%clk 0:02:29]} 25. fxe5 {[%clk 0:02:13]}  Kg7 {[%clk 0:02:26]} 26. b4 {[%clk 0:02:00]}  Be6 {[%clk 0:02:20]} 27. bxa5 {[%clk 0:01:56]}  bxa5 {[%clk 0:02:17]} 28. Nf4 {[%clk 0:01:53]}  Rb5 {[%clk 0:02:12]} 29. Nxe6+ {[%clk 0:01:41]}  fxe6 {[%clk 0:02:13]} 30. Rd1 {[%clk 0:01:41]}  Be7 {[%clk 0:02:12]} 31. Rd7 {[%clk 0:01:39]}  Kf8 {[%clk 0:02:12]} 32. Rxc7 {[%clk 0:01:39]}  a4 {[%clk 0:02:12]} 33. Bf1 {[%clk 0:01:36]}  Ra5 {[%clk 0:02:10]} 34. Bc4 {[%clk 0:01:30]}  a3 {[%clk 0:02:05]} 35. Ba2 {[%clk 0:01:28]}  Rxe5 {[%clk 0:02:04]} 36. Rc4 {[%clk 0:01:15]}  Rb5 {[%clk 0:02:02]} 37. Ra4 {[%clk 0:01:10]}  Rb6 {[%clk 0:01:39]} 38. Kf2 {[%clk 0:01:04]}  Kf7 {[%clk 0:01:39]} 39. Kf3 {[%clk 0:01:04]}  Kf6 {[%clk 0:01:38]} 40. Ra5 {[%clk 0:01:01]}  Rc6 {[%clk 0:01:28]} 41. Bb3 {[%clk 0:00:57]}  Rc3+ {[%clk 0:01:24]} 42. Ke2 {[%clk 0:00:57]}  Bd6 {[%clk 0:01:11]} 43. e5+ {[%clk 0:00:44]}  Bxe5 {[%clk 0:01:10]} 44. Ra6 {[%clk 0:00:44]}  a2 {[%clk 0:00:57]} 45. Rxa2 {[%clk 0:00:42]}  Rc6 {[%clk 0:00:55]} 46. Ra5 {[%clk 0:00:39]}  Bc3 {[%clk 0:00:54]} 47. Rb5 {[%clk 0:00:38]}  e5 {[%clk 0:00:54]} 48. Rd5 {[%clk 0:00:37]}  Bd4 {[%clk 0:00:49]} 49. Rd8 {[%clk 0:00:34]}  Rc3 {[%clk 0:00:49]} 50. Rf8+ {[%clk 0:00:31]}  Kg5 {[%clk 0:00:48]} 51. Rf3 {[%clk 0:00:31]}  Rc6 {[%clk 0:00:33]} 52. Rf7 {[%clk 0:00:24]}  Kg4 {[%clk 0:00:29]} 53. Ba4 {[%clk 0:00:20]}  Rc3 {[%clk 0:00:18]} 54. Bd7+ {[%clk 0:00:17]}  Kh5 {[%clk 0:00:14]} 55. Ba4 {[%clk 0:00:16]}  Re3+ {[%clk 0:00:11]} 56. Kd2 {[%clk 0:00:16]}  Ra3 {[%clk 0:00:10]} 57. Bb3 {[%clk 0:00:16]}  Ra1 {[%clk 0:00:10]} 58. Be6 {[%clk 0:00:11]}  Rh1 {[%clk 0:00:08]} 59. h3 {[%clk 0:00:11]}  Rg1 {[%clk 0:00:06]} 60. g4+ {[%clk 0:00:11]}  Kh4 {[%clk 0:00:06]} 61. Rh7 {[%clk 0:00:11]}  Kg5 {[%clk 0:00:06]} 62. Rf7 {[%clk 0:00:11]}  Rg2+ {[%clk 0:00:05]} 63. Kd1 {[%clk 0:00:10]}  Rg3 {[%clk 0:00:05]} 64. h4+ {[%clk 0:00:10]}  Kxh4 {[%clk 0:00:04]} 65. Rh7 {[%clk 0:00:10]}  Kg5 {[%clk 0:00:05]} 66. Rh8 {[%clk 0:00:09]}  h5 {[%clk 0:00:05]} 67. gxh5 {[%clk 0:00:09]}  gxh5 {[%clk 0:00:06]} 68. Rg8+ {[%clk 0:00:10]}  Kf4 {[%clk 0:00:06]} 69. Rxg3 {[%clk 0:00:10]}  Kxg3 {[%clk 0:00:07]} 70. Ke2 {[%clk 0:00:10]}  h4 {[%clk 0:00:07]} 71. Kd3 {[%clk 0:00:10]}  h3 {[%clk 0:00:08]} 72. Bd5 {[%clk 0:00:10]}  h2 {[%clk 0:00:07]} 73. c3 {[%clk 0:00:07]}  Bc5 {[%clk 0:00:08]} 74. Kc4 {[%clk 0:00:06]}  Bd6 {[%clk 0:00:08]} 75. Be4 {[%clk 0:00:07]}  Kf2 {[%clk 0:00:08]} 76. Kd5 {[%clk 0:00:07]}  Bb8 {[%clk 0:00:08]} 77. c4 {[%clk 0:00:07]}  Kg1 {[%clk 0:00:08]} 78. c5 {[%clk 0:00:07]}  h1=Q {[%clk 0:00:08]} 79. Bxh1 {[%clk 0:00:07]}  Kxh1 {[%clk 0:00:09]} 80. Kc6 {[%clk 0:00:06]}  e4 {[%clk 0:00:09]} 81. Kb7 {[%clk 0:00:06]}  Bf4 {[%clk 0:00:08]} 82. c6 {[%clk 0:00:07]}  e3 {[%clk 0:00:09]} 83. Kb6 {[%clk 0:00:07]}  e2 {[%clk 0:00:09]} 84. c7 {[%clk 0:00:08]}  Bxc7+ {[%clk 0:00:09]} 85. Kxc7 {[%clk 0:00:09]}  e1=Q {[%clk 0:00:10]} 0-1


[Site "https://www.chess.com"]

[Event "Titled Tuesday Blitz February 07 Early 2023"]
[White "Ambartsumova, Karina"]
[Black "Vlassov, Nikolai"]
[WhiteFideId "4166299"]
[BlackFideId "4103360"]
[WhiteElo "2393"]
[BlackElo "2283"]
[Result "0-1"]
[Round "06"]
[TimeControl "180+2"]
[Date "2023.02.07"]
[WhiteClock "0:00:02"]
[BlackClock "0:00:12"]

1. c4 {[%clk 0:02:53]}  e5 {[%clk 0:02:59]} 2. Nc3 {[%clk 0:02:52]}  Bb4 {[%clk 0:02:57]} 3. Qc2 {[%clk 0:02:51]}  Nf6 {[%clk 0:02:53]} 4. Nf3 {[%clk 0:02:48]}  d6 {[%clk 0:02:31]} 5. a3 {[%clk 0:02:38]}  Bxc3 {[%clk 0:02:31]} 6. Qxc3 {[%clk 0:02:39]}  O-O {[%clk 0:02:31]} 7. d3 {[%clk 0:02:28]}  c5 {[%clk 0:02:19]} 8. e3 {[%clk 0:02:18]}  Nc6 {[%clk 0:02:18]} 9. Be2 {[%clk 0:02:19]}  Bg4 {[%clk 0:02:17]} 10. O-O {[%clk 0:02:14]}  Re8 {[%clk 0:02:12]} 11. Re1 {[%clk 0:01:53]}  Rc8 {[%clk 0:02:11]} 12. b3 {[%clk 0:01:46]}  d5 {[%clk 0:02:08]} 13. cxd5 {[%clk 0:01:44]}  Nxd5 {[%clk 0:02:08]} 14. Qc2 {[%clk 0:01:45]}  b5 {[%clk 0:01:55]} 15. Bb2 {[%clk 0:01:44]}  Qd6 {[%clk 0:01:49]} 16. Nd2 {[%clk 0:01:39]}  Bxe2 {[%clk 0:01:40]} 17. Rxe2 {[%clk 0:01:40]}  f5 {[%clk 0:01:22]} 18. Rc1 {[%clk 0:01:34]}  Nd8 {[%clk 0:01:16]} 19. d4 {[%clk 0:00:57]}  exd4 {[%clk 0:01:11]} 20. Qxf5 {[%clk 0:00:57]}  Rc7 {[%clk 0:00:44]} 21. Ne4 {[%clk 0:00:46]}  Qe6 {[%clk 0:00:22]} 22. Qxe6+ {[%clk 0:00:42]}  Nxe6 {[%clk 0:00:23]} 23. Nd6 {[%clk 0:00:31]}  Rd8 {[%clk 0:00:21]} 24. Nxb5 {[%clk 0:00:31]}  Rb7 {[%clk 0:00:21]} 25. a4 {[%clk 0:00:18]}  a6 {[%clk 0:00:21]} 26. Na3 {[%clk 0:00:11]}  d3 {[%clk 0:00:21]} 27. Rd2 {[%clk 0:00:10]}  Rxb3 {[%clk 0:00:22]} 28. Nc4 {[%clk 0:00:10]}  Nb4 {[%clk 0:00:19]} 29. Rcd1 {[%clk 0:00:07]}  Nc6 {[%clk 0:00:17]} 30. f3 {[%clk 0:00:06]}  Rb4 {[%clk 0:00:16]} 31. Ne5 {[%clk 0:00:04]}  Nxe5 {[%clk 0:00:15]} 32. Bxe5 {[%clk 0:00:05]}  c4 {[%clk 0:00:15]} 33. a5 {[%clk 0:00:03]}  Ra4 {[%clk 0:00:15]} 34. Bc3 {[%clk 0:00:04]}  Ra3 {[%clk 0:00:15]} 35. Bb4 {[%clk 0:00:04]}  Rb3 {[%clk 0:00:15]} 36. Be7 {[%clk 0:00:03]}  Rd7 {[%clk 0:00:15]} 37. Bh4 {[%clk 0:00:02]}  c3 {[%clk 0:00:12]} 38. Rxd3 {[%clk 0:00:02]}  Rxd3 {[%clk 0:00:11]} 39. Rxd3 {[%clk 0:00:03]}  c2 {[%clk 0:00:11]} 40. Rxb3 {[%clk 0:00:02]}  c1=Q+ {[%clk 0:00:12]} 41. Kf2 {[%clk 0:00:02]}  Qc2+ {[%clk 0:00:12]} 0-1


[Site "https://www.chess.com"]

[Event "Titled Tuesday Blitz February 07 Early 2023"]
[White "Tillyaev, Ulugbek"]
[Black "Defend, Balint"]
[WhiteFideId "14202441"]
[BlackFideId "17004853"]
[WhiteElo "2287"]
[BlackElo "1673"]
[Result "0-1"]
[Round "06"]
[TimeControl "180+2"]
[Date "2023.02.07"]
[WhiteClock "0:00:04"]
[BlackClock "0:00:44"]

1. e4 {[%clk 0:01:13]}  c5 {[%clk 0:02:59]} 2. Nf3 {[%clk 0:01:13]}  d6 {[%clk 0:02:59]} 3. Nc3 {[%clk 0:01:13]}  Nf6 {[%clk 0:03:00]} 4. Bb5+ {[%clk 0:01:12]}  Nbd7 {[%clk 0:02:58]} 5. O-O {[%clk 0:01:10]}  a6 {[%clk 0:02:58]} 6. Bxd7+ {[%clk 0:01:10]}  Bxd7 {[%clk 0:02:59]} 7. d4 {[%clk 0:01:10]}  cxd4 {[%clk 0:03:00]} 8. Qxd4 {[%clk 0:01:10]}  g6 {[%clk 0:02:59]} 9. e5 {[%clk 0:01:08]}  dxe5 {[%clk 0:02:58]} 10. Nxe5 {[%clk 0:01:08]}  Bg7 {[%clk 0:02:56]} 11. Qh4 {[%clk 0:01:04]}  O-O {[%clk 0:02:48]} 12. Rd1 {[%clk 0:01:03]}  Qe8 {[%clk 0:02:45]} 13. Bh6 {[%clk 0:00:59]}  Be6 {[%clk 0:02:39]} 14. Bxg7 {[%clk 0:00:52]}  Kxg7 {[%clk 0:02:40]} 15. Qb4 {[%clk 0:00:52]}  b5 {[%clk 0:02:37]} 16. a4 {[%clk 0:00:52]}  bxa4 {[%clk 0:02:36]} 17. Rxa4 {[%clk 0:00:50]}  Qb8 {[%clk 0:02:36]} 18. Nc6 {[%clk 0:00:32]}  Qxb4 {[%clk 0:02:32]} 19. Rxb4 {[%clk 0:00:33]}  Rfc8 {[%clk 0:02:32]} 20. Nd4 {[%clk 0:00:20]}  Bd7 {[%clk 0:02:27]} 21. Ra1 {[%clk 0:00:20]}  a5 {[%clk 0:02:21]} 22. Rb3 {[%clk 0:00:18]}  a4 {[%clk 0:02:10]} 23. Rb7 {[%clk 0:00:17]}  Rab8 {[%clk 0:02:09]} 24. Rxb8 {[%clk 0:00:16]}  Rxb8 {[%clk 0:02:10]} 25. Nd1 {[%clk 0:00:13]}  Rb4 {[%clk 0:02:06]} 26. c3 {[%clk 0:00:13]}  Rb6 {[%clk 0:02:02]} 27. f3 {[%clk 0:00:13]}  Nd5 {[%clk 0:02:00]} 28. Kf2 {[%clk 0:00:12]}  Kf6 {[%clk 0:01:59]} 29. g3 {[%clk 0:00:12]}  Ke5 {[%clk 0:01:58]} 30. Ke2 {[%clk 0:00:12]}  Kd6 {[%clk 0:01:59]} 31. Kd3 {[%clk 0:00:12]}  e5 {[%clk 0:01:58]} 32. Nc2 {[%clk 0:00:12]}  Kc5 {[%clk 0:01:51]} 33. Na3 {[%clk 0:00:10]}  h5 {[%clk 0:01:41]} 34. Kd2 {[%clk 0:00:10]}  h4 {[%clk 0:01:35]} 35. Nc2 {[%clk 0:00:10]}  h3 {[%clk 0:01:34]} 36. Kc1 {[%clk 0:00:09]}  Rb8 {[%clk 0:01:30]} 37. Nf2 {[%clk 0:00:09]}  Nf6 {[%clk 0:01:17]} 38. g4 {[%clk 0:00:08]}  e4 {[%clk 0:01:14]} 39. g5 {[%clk 0:00:08]}  Nh5 {[%clk 0:01:04]} 40. Nxe4+ {[%clk 0:00:08]}  Kd5 {[%clk 0:01:05]} 41. Kd2 {[%clk 0:00:09]}  Ke5 {[%clk 0:01:04]} 42. Nb4 {[%clk 0:00:08]}  Kf4 {[%clk 0:01:03]} 43. Re1 {[%clk 0:00:09]}  Kxf3 {[%clk 0:01:00]} 44. Nc5 {[%clk 0:00:10]}  Bf5 {[%clk 0:01:00]} 45. Re3+ {[%clk 0:00:06]}  Kg4 {[%clk 0:01:00]} 46. Nxa4 {[%clk 0:00:03]}  Kxg5 {[%clk 0:00:59]} 47. Nc5 {[%clk 0:00:03]}  Kh4 {[%clk 0:00:58]} 48. Ncd3 {[%clk 0:00:03]}  g5 {[%clk 0:00:58]} 49. Ne5 {[%clk 0:00:02]}  g4 {[%clk 0:00:53]} 50. b3 {[%clk 0:00:02]}  g3 {[%clk 0:00:53]} 51. Nf3+ {[%clk 0:00:02]}  Kg4 {[%clk 0:00:53]} 52. Ne5+ {[%clk 0:00:03]}  Kf4 {[%clk 0:00:53]} 53. Nd5+ {[%clk 0:00:03]}  Kg5 {[%clk 0:00:52]} 54. Nxf7+ {[%clk 0:00:03]}  Kg6 {[%clk 0:00:52]} 55. Ne5+ {[%clk 0:00:03]}  Kg7 {[%clk 0:00:51]} 56. Re2 {[%clk 0:00:01]}  g2 {[%clk 0:00:49]} 57. Nf3 {[%clk 0:00:01]}  Rxb3 {[%clk 0:00:46]} 58. Ne3 {[%clk 0:00:02]}  Rb2+ {[%clk 0:00:45]} 59. Ke1 {[%clk 0:00:02]}  Rb1+ {[%clk 0:00:44]} 60. Kf2 {[%clk 0:00:03]}  Be4 {[%clk 0:00:44]} 61. Ng1 {[%clk 0:00:02]}  Nf4 {[%clk 0:00:44]} 62. Re1 {[%clk 0:00:02]}  Nd3+ {[%clk 0:00:44]} 63. Kg3 {[%clk 0:00:02]}  Rxe1 {[%clk 0:00:45]} 64. Ng4 {[%clk 0:00:03]}  Rxg1 {[%clk 0:00:44]} 65. Kxh3 {[%clk 0:00:03]}  Rf1 {[%clk 0:00:44]} 66. Kg3 {[%clk 0:00:03]}  g1=Q+ {[%clk 0:00:44]} 67. Kh4 {[%clk 0:00:04]}  Rf4 {[%clk 0:00:44]} 0-1


[Site "https://www.chess.com"]

[Event "Titled Tuesday Blitz February 07 Early 2023"]
[White "Megalios, Konstantinos"]
[Black "Pein, Jonathan"]
[WhiteFideId "4238044"]
[BlackFideId "417092"]
[WhiteElo "2372"]
[BlackElo "2265"]
[Result "1-0"]
[Round "06"]
[TimeControl "180+2"]
[Date "2023.02.07"]
[WhiteClock "0:00:08"]
[BlackClock "0:00:15"]

1. Nf3 {[%clk 0:03:00]}  c5 {[%clk 0:02:57]} 2. g3 {[%clk 0:02:59]}  b6 {[%clk 0:02:54]} 3. Bg2 {[%clk 0:02:58]}  Bb7 {[%clk 0:02:55]} 4. O-O {[%clk 0:02:58]}  e6 {[%clk 0:02:54]} 5. c4 {[%clk 0:02:57]}  Nf6 {[%clk 0:02:54]} 6. b3 {[%clk 0:02:57]}  Be7 {[%clk 0:02:53]} 7. Bb2 {[%clk 0:02:58]}  O-O {[%clk 0:02:54]} 8. Nc3 {[%clk 0:02:57]}  d5 {[%clk 0:02:54]} 9. cxd5 {[%clk 0:02:57]}  Nxd5 {[%clk 0:02:54]} 10. Nxd5 {[%clk 0:02:50]}  Bxd5 {[%clk 0:02:55]} 11. d3 {[%clk 0:02:37]}  Bf6 {[%clk 0:02:48]} 12. Qc2 {[%clk 0:02:28]}  Nd7 {[%clk 0:02:44]} 13. Rfd1 {[%clk 0:02:22]}  Rc8 {[%clk 0:02:44]} 14. Rac1 {[%clk 0:02:21]}  e5 {[%clk 0:02:34]} 15. Nd2 {[%clk 0:02:16]}  Bxg2 {[%clk 0:02:30]} 16. Kxg2 {[%clk 0:02:17]}  Nb8 {[%clk 0:02:21]} 17. a3 {[%clk 0:02:11]}  Nc6 {[%clk 0:02:18]} 18. Qc4 {[%clk 0:02:01]}  Be7 {[%clk 0:02:12]} 19. Nf3 {[%clk 0:01:46]}  Bd6 {[%clk 0:02:05]} 20. Qd5 {[%clk 0:01:38]}  a5 {[%clk 0:01:58]} 21. Rc4 {[%clk 0:01:27]}  Ne7 {[%clk 0:01:48]} 22. Qb7 {[%clk 0:01:18]}  Rb8 {[%clk 0:01:34]} 23. Qa6 {[%clk 0:01:14]}  Ng6 {[%clk 0:01:26]} 24. Qb5 {[%clk 0:01:11]}  f5 {[%clk 0:01:18]} 25. h4 {[%clk 0:00:46]}  f4 {[%clk 0:01:05]} 26. Re4 {[%clk 0:00:44]}  fxg3 {[%clk 0:00:57]} 27. fxg3 {[%clk 0:00:42]}  Qc8 {[%clk 0:00:58]} 28. Rh1 {[%clk 0:00:33]}  Qf5 {[%clk 0:00:51]} 29. h5 {[%clk 0:00:27]}  Ne7 {[%clk 0:00:51]} 30. h6 {[%clk 0:00:17]}  Rf7 {[%clk 0:00:51]} 31. Bxe5 {[%clk 0:00:15]}  Bxe5 {[%clk 0:00:24]} 32. Rxe5 {[%clk 0:00:16]}  Qf6 {[%clk 0:00:22]} 33. Qc4 {[%clk 0:00:16]}  Rf8 {[%clk 0:00:20]} 34. hxg7 {[%clk 0:00:15]}  Qxg7 {[%clk 0:00:20]} 35. Rg5 {[%clk 0:00:15]}  Ng6 {[%clk 0:00:20]} 36. Rhh5 {[%clk 0:00:12]}  Qb2 {[%clk 0:00:20]} 37. Qe4 {[%clk 0:00:12]}  Kg7 {[%clk 0:00:14]} 38. Rxh7+ {[%clk 0:00:09]}  Kxh7 {[%clk 0:00:13]} 39. Qxg6+ {[%clk 0:00:09]}  Kh8 {[%clk 0:00:14]} 40. Rh5+ {[%clk 0:00:08]}  Rh7 {[%clk 0:00:15]} 41. Rxh7# {[%clk 0:00:08]} 1-0


[Site "https://www.chess.com"]

[Event "Titled Tuesday Blitz February 07 Early 2023"]
[White "Yeritsyan, Hayk"]
[Black "Horobetz, Graham"]
[WhiteFideId "13307320"]
[BlackFideId "2047322"]
[WhiteElo "2241"]
[BlackElo "2140"]
[Result "1-0"]
[Round "06"]
[TimeControl "180+2"]
[Date "2023.02.07"]
[WhiteClock "0:00:14"]
[BlackClock "0:00:01"]

1. c4 {[%clk 0:03:00]}  c5 {[%clk 0:02:58]} 2. Nc3 {[%clk 0:02:47]}  g6 {[%clk 0:02:58]} 3. e4 {[%clk 0:02:41]}  Bg7 {[%clk 0:02:56]} 4. d3 {[%clk 0:02:32]}  Nc6 {[%clk 0:02:56]} 5. Be3 {[%clk 0:02:28]}  d6 {[%clk 0:02:55]} 6. Nge2 {[%clk 0:02:27]}  e5 {[%clk 0:02:40]} 7. g3 {[%clk 0:02:27]}  Nge7 {[%clk 0:02:40]} 8. Bg2 {[%clk 0:02:23]}  O-O {[%clk 0:02:39]} 9. O-O {[%clk 0:02:11]}  Be6 {[%clk 0:02:35]} 10. Qd2 {[%clk 0:02:11]}  Qd7 {[%clk 0:02:35]} 11. f4 {[%clk 0:02:10]}  Rab8 {[%clk 0:02:31]} 12. f5 {[%clk 0:01:47]}  gxf5 {[%clk 0:02:30]} 13. Bh6 {[%clk 0:01:48]}  f6 {[%clk 0:01:54]} 14. Bxg7 {[%clk 0:01:42]}  Kxg7 {[%clk 0:01:54]} 15. Rae1 {[%clk 0:01:32]}  h6 {[%clk 0:01:50]} 16. Kh1 {[%clk 0:01:30]}  fxe4 {[%clk 0:01:49]} 17. Nxe4 {[%clk 0:01:18]}  f5 {[%clk 0:01:48]} 18. N4c3 {[%clk 0:01:17]}  Nd4 {[%clk 0:01:42]} 19. Nxd4 {[%clk 0:01:16]}  cxd4 {[%clk 0:01:42]} 20. Ne2 {[%clk 0:01:12]}  Ng6 {[%clk 0:01:42]} 21. Ng1 {[%clk 0:01:10]}  b5 {[%clk 0:01:33]} 22. b3 {[%clk 0:01:10]}  bxc4 {[%clk 0:01:33]} 23. dxc4 {[%clk 0:01:09]}  Qd8 {[%clk 0:01:15]} 24. Nf3 {[%clk 0:01:09]}  a5 {[%clk 0:01:08]} 25. c5 {[%clk 0:01:05]}  dxc5 {[%clk 0:01:04]} 26. Nxe5 {[%clk 0:01:04]}  Bd5 {[%clk 0:01:00]} 27. Nxg6 {[%clk 0:00:59]}  Kxg6 {[%clk 0:01:01]} 28. Re5 {[%clk 0:00:57]}  Bxg2+ {[%clk 0:00:57]} 29. Qxg2 {[%clk 0:00:58]}  Qd6 {[%clk 0:00:45]} 30. Rfe1 {[%clk 0:00:56]}  Rf6 {[%clk 0:00:41]} 31. g4 {[%clk 0:00:56]}  f4 {[%clk 0:00:32]} 32. Qe4+ {[%clk 0:00:54]}  Kg7 {[%clk 0:00:26]} 33. Re7+ {[%clk 0:00:41]}  Rf7 {[%clk 0:00:20]} 34. Rxf7+ {[%clk 0:00:39]}  Kxf7 {[%clk 0:00:21]} 35. Qh7+ {[%clk 0:00:35]}  Kf8 {[%clk 0:00:21]} 36. Qf5+ {[%clk 0:00:30]}  Kg8 {[%clk 0:00:15]} 37. Re6 {[%clk 0:00:29]}  Qf8 {[%clk 0:00:13]} 38. Rg6+ {[%clk 0:00:26]}  Kh8 {[%clk 0:00:10]} 39. Rf6 {[%clk 0:00:20]}  Qg7 {[%clk 0:00:08]} 40. Rf7 {[%clk 0:00:20]}  Rg8 {[%clk 0:00:03]} 41. Rxg7 {[%clk 0:00:18]}  Rxg7 {[%clk 0:00:04]} 42. Qxf4 {[%clk 0:00:17]}  Rd7 {[%clk 0:00:03]} 43. Qe5+ {[%clk 0:00:15]}  Rg7 {[%clk 0:00:01]} 44. Qxc5 {[%clk 0:00:14]}  Kh7 {[%clk 0:00:01]} 45. Qxd4 {[%clk 0:00:14]}  Rd7 {[%clk 0:00:01]} 46. Qxd7+ {[%clk 0:00:14]} 1-0


[Site "https://www.chess.com"]